Cogmind - Beta 14 @@@ ROGUE MODE // 2024.08.15 @ 18:19:59 Player: celerysam Result: Destroyed by G-47 Trooper with Particle Gun Performance ------------- Evolutions (2) 1000 Regions Visited (7) 1400 Robots Destroyed (19) 95 Value Destroyed (553) 553 Prototype IDs (26) 520 Alien Tech Used (0) 0 Bonus (300) 300 TOTAL SCORE: 3868 Bonus ------- Aligned with FarCom 300 Cogmind --------- Core Integrity 0/550 Matter 300/300 Energy 100/100 System Corruption 0% Temperature Cool (9) Movement Hovering (80) Location -8/Storage Parts ------- > --- POWER (2) -------- (None) > --- PROPULSION (4) --- Combat Airjet > --- UTILITY (3) ------ Small Storage Unit Advanced Targeting Computer > --- WEAPON (2) ------- Hammer > --- INVENTORY (8) ---- Light Angular Momentum Engine Superbattery (1500) System Shield Beam Rifle Beamcaster Assault Rifle Peak State ------------ > --- POWER ------------ Light Ion Engine > --- PROPULSION ------- Flight Unit Flight Unit Flight Unit Flight Unit > --- UTILITY ---------- Small Storage Unit Experimental Sensor Array Advanced Targeting Computer > --- WEAPON ----------- Beamcaster Improved Heavy Laser > --- INVENTORY -------- Light Deuterium Engine Light Angular Momentum Engine Improved Treads Combat Airjet Superbattery Transmission Jammer High-powered Shotgun Axe [Rating: 32] Favorites ----------- Power Light Ion Engine Engine Light Ion Engine Power Core Light Nuclear Core Propulsion Flight Unit Treads Light Treads Leg Aluminum Leg Wheel Armored Wheel Hover Unit Combat Airjet Flight Unit Flight Unit Utility Small Storage Unit Device ECM Suite Storage Small Storage Unit Processor Improved Targeting Computer Weapon Assault Rifle Energy Gun EM Pulse Gun Ballistic Gun Assault Rifle Impact Weapon Hammer Slashing Weapon Axe Build | -11 -10 -9 -9 -9 -8 -8 -8 ------- Run | Yrd Mat Mat Min Exi Min Mat Sto Slots Evolved 4 | . . 2 . . . 2 . Power 1 | . . . . . . 1 . Propulsion 2 | . . 2 . . . . . Utility 1 | . . . . . . 1 . Weapon . | . . . . . . . . Parts Attached 49 | 6 6 5 7 . 1 2 22 Power 7 | 1 1 . 1 . . . 4 Engine 6 | 1 1 . 1 . . . 3 Core 1 | . . . . . . . 1 Reactor . | . . . . . . . . Propulsion 24 | 2 3 4 4 . 1 . 10 Treads 4 | . . . . . . . 4 Leg 7 | 2 3 . . . . . 2 Wheel 1 | . . . . . . . 1 Hover 1 | . . . . . . . 1 Flight 11 | . . 4 4 . 1 . 2 Utility 6 | 1 1 1 . . . 2 1 Device 3 | . 1 . . . . 1 1 Storage 1 | 1 . . . . . . . Processor 2 | . . 1 . . . 1 . Hackware . | . . . . . . . . Protection . | . . . . . . . . Artifact . | . . . . . . . . Weapon 12 | 2 1 . 2 . . . 7 Energy Gun 6 | 1 1 . 1 . . . 3 Energy Cannon . | . . . . . . . . Ballistic Gun 4 | 1 . . 1 . . . 2 Ballistic Cannon . | . . . . . . . . Launcher . | . . . . . . . . Special Weapon . | . . . . . . . . Impact Weapon 1 | . . . . . . . 1 Slashing Weapon 1 | . . . . . . . 1 Piercing Weapon . | . . . . . . . . Special Melee Weapon . | . . . . . . . . Unidentified Prototypes 3 | . . . . . . 1 2 Parts Lost 29 | . 1 . 6 . . . 22 Power 7 | . 1 . 1 . . . 5 Propulsion 14 | . . . 3 . . . 11 Utility 2 | . . . . . . . 2 Weapon 6 | . . . 2 . . . 4 Highest Loss Streak 9 | . 1 . 3 . . . 9 To Critical Strikes . | . . . . . . . . Average Slot Usage (%) 90 | . 98 88 91 100 100 90 78 Engine 11 | . 14 11 9 11 11 9 10 Treads 4 | . . . . . . . 13 Leg 8 | . 28 11 . . . . 2 Flight 20 | . . 22 43 44 44 36 10 Device 5 | . 12 7 . . . 9 4 Storage 11 | . 14 11 11 11 11 9 9 Processor 7 | . . 3 11 11 11 9 9 Energy Gun 7 | . 14 11 2 11 11 9 2 Ballistic Gun 10 | . 14 11 12 11 11 9 5 Slashing Weapon 2 | . . . . . . . 6 Peak Build Rating 32 | 6 7 10 16 17 18 27 32 Average Rating 14 | 4 6 8 11 16 17 26 23 On Entrance 12 | . 6 7 10 16 17 18 27 Naked Turns . | . . . . . . . . Heaviest Build 28 | 12 14 14 15 15 15 16 28 Greatest Support 83 | 20 20 20 16 16 16 16 83 Greatest Overweight (x) 3 | 3 1 . . . . . 3 Average Overweight (x) . | . . . . . . . . Largest Inventory Capacity 8 | 8 8 8 8 8 8 8 8 Average Capacity 7 | 7 8 8 8 8 8 8 8 Most Carried 8 | 6 8 8 8 8 8 8 8 Average Carried 7 | 4 7 7 7 8 8 7 7 Final Capacity 8 | 8 8 8 8 8 8 8 8 Final Carried 8 | 6 8 7 8 8 8 8 6 Class Distribution -------------------- 45% | Mutant 34% | Sprinter 11% | Scavenger-Mutant 8% | Scavenger-Scout Dominant Class ---------------- Mutant | -10/Materials Mutant | -9/Materials Sprinter | -9/Mines Sprinter | -9/Exiles Sprinter | -8/Mines Sprinter | -8/Materials Mutant | -8/Storage Resources | -11 -10 -9 -9 -9 -8 -8 -8 ----------- Run | Yrd Mat Mat Min Exi Min Mat Sto Matter Collected 779 | 249 76 . 171 . . . 283 Remotely . | . . . . . . . . Salvage Created 589 | . 150 . 38 . . . 401 Parts 36 | . 4 . 6 . . . 26 Haulers Intercepted . | . . . . . . . . Recyclers Shooed 1 | . 1 . . . . . . Parts Field Recycled . | . . . . . . . . Retrieved Matter . | . . . . . . . . Parts Self-Destructed . | . . . . . . . . Prevented . | . . . . . . . . Kills | -11 -10 -9 -9 -9 -8 -8 -8 ------- Run | Yrd Mat Mat Min Exi Min Mat Sto Combat Hostiles Destroyed 19 | . 4 . 3 . . . 12 Melee 3 | . . . . . . . 3 Guns 15 | . 3 . 3 . . . 9 AOE 1 | . 1 . . . . . . Classes Destroyed 3 | . 2 . . . . . 1 Swarmer 8 | . 1 . 3 . . . 4 Grunt 7 | . 3 . . . . . 4 Sentry 4 | . . . . . . . 4 Best Kill Streak 7 | . 1 . 3 . . . 7 Combat Bots Only 7 | . 1 . 3 . . . 7 Max Kills in Single Turn 1 | . 1 . 1 . . . 1 Gunslinging . | . . . . . . . . Exploded 1 | . 1 . . . . . . Melee 1 | . . . . . . . 1 Uniques/NPCs Destroyed . | . . . . . . . . Combat | -11 -10 -9 -9 -9 -8 -8 -8 -------- Run | Yrd Mat Mat Min Exi Min Mat Sto Hostile Shots Fired 305 | . 39 . 57 . 25 2 182 Missed 97 | . 12 . 26 . 16 2 41 Damage Taken 2870 | . 375 . 329 . 82 . 2084 Core 760 | . 95 . 89 . 19 . 557 Absorbed by Shields . | . . . . . . . . Core Remaining (%) 78 | 100 62 . . . 73 . . Volleys Fired 65 | . 15 . 13 . . . 37 Largest 2 | . 2 . 2 . . . 1 Hottest 75 | . 60 . 60 . . . 75 Shots Fired 90 | . 30 . 23 . . . 37 Gun 90 | . 30 . 23 . . . 37 Cannon . | . . . . . . . . Launcher . | . . . . . . . . Special . | . . . . . . . . Kinetic 60 | . 15 . 18 . . . 27 Thermal 10 | . . . . . . . 10 Explosive . | . . . . . . . . Electromagnetic 20 | . 15 . 5 . . . . Robot Hit Streak 13 | . 7 . 3 . . . 13 Robot Miss Streak 6 | . 5 . 6 . . . 3 Penetration Max . | . . . . . . . . Secondary Targets 2 | . 1 . 1 . . . . Max Gunslinging Chain 1 | . 1 . 1 . . . . Shots Hit Robots 72 | . 16 . 11 . . . 45 Core Hits 30 | . 7 . 4 . . . 19 Critical Kills 1 | . . . . . . . 1 Critical Parts Destroyed . | . . . . . . . . Critical Strikes 6 | . 1 . . . . . 5 Destroy 1 | . . . . . . . 1 Corrupt 1 | . 1 . . . . . . Smash 1 | . . . . . . . 1 Sever 3 | . . . . . . . 3 Melee Attacks 27 | . . . . . . . 27 Impact 10 | . . . . . . . 10 Slashing 17 | . . . . . . . 17 Piercing . | . . . . . . . . Sneak Attacks 1 | . . . . . . . 1 Combat Hostiles . | . . . . . . . . Follow-up Attacks . | . . . . . . . . Damage Inflicted 1492 | . 216 . 139 . . . 1137 Guns 998 | . 216 . 139 . . . 643 Cannons . | . . . . . . . . Explosions . | . . . . . . . . Melee 494 | . . . . . . . 494 Ramming . | . . . . . . . . Kinetic 772 | . 100 . 127 . . . 545 Thermal 98 | . . . . . . . 98 Explosive . | . . . . . . . . Electromagnetic 128 | . 116 . 12 . . . . Impact 252 | . . . . . . . 252 Slashing 242 | . . . . . . . 242 Piercing . | . . . . . . . . Highest Corruption . | . . . . . . . . Average Corruption . | . . . . . . . . Corruption Purged . | . . . . . . . . Corruption Blocked . | . . . . . . . . Overload Shots . | . . . . . . . . Overflow Damage . | . . . . . . . . Projectiles . | . . . . . . . . Explosions . | . . . . . . . . Melee . | . . . . . . . . Knockbacks 1 | . . . . . . . 1 Impact 1 | . . . . . . . 1 Kinetic . | . . . . . . . . Secondary . | . . . . . . . . Self-Inflicted Damage . | . . . . . . . . Shots . | . . . . . . . . Rammed . | . . . . . . . . Targets Rammed . | . . . . . . . . Kicked . | . . . . . . . . Crushed . | . . . . . . . . Highest Temperature 401 | . 37 . 10 . 6 . 401 Average Temperature 90 | . 16 . 4 . 4 . 147 Received Heat Transfer 1266 | . 144 . 15 . 18 . 1089 Siege Activations . | . . . . . . . . Robots Corrupted . | . . . . . . . . Combat Hostiles . | . . . . . . . . Parts Fried . | . . . . . . . . Impact Corruptions . | . . . . . . . . Robots Melted . | . . . . . . . . Combat Hostiles . | . . . . . . . . Parts Melted . | . . . . . . . . Heat Transferred 185 | . . . . . . . 185 Parts Sabotaged . | . . . . . . . . Parts Stolen . | . . . . . . . . Parts Stripped . | . . . . . . . . Power Chain Reactions . | . . . . . . . . Alert | -11 -10 -9 -9 -9 -8 -8 -8 ------- Run | Yrd Mat Mat Min Exi Min Mat Sto Peak Influence 282 | . 120 50 90 . 15 20 282 Initial 50 | . . 50 19 . . 5 8 Average 82 | . 35 50 58 . 1 7 168 Maximum Alert Level 1 | . . . . . . . 1 Low Security (%) 81 | 100 100 100 100 . 100 100 46 Level 1 18 | . . . . . . . 53 Level 2 . | . . . . . . . . Level 3 . | . . . . . . . . Level 4 . | . . . . . . . . Level 5 . | . . . . . . . . High Security . | . . . . . . . . Max Security . | . . . . . . . . Squads Dispatched 4 | . 2 . . . . . 2 Investigation 3 | . 1 . . . . . 2 Extermination . | . . . . . . . . Reinforcement 1 | . 1 . . . . . . Assault . | . . . . . . . . Garrison . | . . . . . . . . Intercept . | . . . . . . . . Searches Triggered . | . . . . . . . . Construction Impeded . | . . . . . . . . Haulers Reinforced . | . . . . . . . . Active Scanning Responses . | . . . . . . . . Cargo Convoy Interrupts . | . . . . . . . . Stealth | -11 -10 -9 -9 -9 -8 -8 -8 --------- Run | Yrd Mat Mat Min Exi Min Mat Sto Distress Signals 4 | . . . . . . 1 3 Communications Jammed . | . . . . . . . . Distress Signals . | . . . . . . . . Times Spotted 82 | . 16 . 25 . 7 4 30 Peak Tracking Total 22 | . 7 . 22 . 6 5 11 Tactical Retreats 12 | . 5 . 2 . 1 . 4 Traps | -11 -10 -9 -9 -9 -8 -8 -8 ------- Run | Yrd Mat Mat Min Exi Min Mat Sto Traps Triggered 3 | . 2 . . . . . 1 Indirectly . | . . . . . . . . Trap Hack Attempts . | . . . . . . . . Triggered . | . . . . . . . . Disarmed . | . . . . . . . . Reprogrammed 1 | . . . . . . . 1 Reused 1 | . . . . . . . 1 Traps Extracted . | . . . . . . . . Installed . | . . . . . . . . Triggered 1 | . . . . . . . 1 Machines | -11 -10 -9 -9 -9 -8 -8 -8 ---------- Run | Yrd Mat Mat Min Exi Min Mat Sto Machines Disabled . | . . . . . . . . Max in Single Turn . | . . . . . . . . Machines Repaired . | . . . . . . . . Machines Dismantled . | . . . . . . . . Machines Sabotaged . | . . . . . . . . Overloaded Fab Kills . | . . . . . . . . Hacking | -11 -10 -9 -9 -9 -8 -8 -8 --------- Run | Yrd Mat Mat Min Exi Min Mat Sto Machines Accessed 10 | . . . 1 3 1 . 5 Terminals 6 | . . . . . 1 . 5 Fabricators . | . . . . . . . . Repair Stations . | . . . . . . . . Recycling Units . | . . . . . . . . Scanalyzers . | . . . . . . . . Garrison Access . | . . . . . . . . Total Hacks 38 | . . . 1 25 2 . 10 Successful 32 | . . . 1 25 1 . 5 Failed 6 | . . . . . 1 . 5 Catastrophic . | . . . . . . . . Database Lockouts . | . . . . . . . . Manual 1 | . . . . 1 . . . Terminals 12 | . . . . . 2 . 10 Fabricators . | . . . . . . . . Repair Stations . | . . . . . . . . Recycling Units . | . . . . . . . . Scanalyzers . | . . . . . . . . Garrison Access . | . . . . . . . . Terminal Hacks 32 | . . . 1 25 1 . 5 Record 24 | . . . . 24 . . . Open Door 3 | . . . 1 . . . 2 Level Access Points 1 | . . . . . . . 1 Emergency Access Points 1 | . . . . . . . 1 Reprogram Traps 1 | . . . . . . . 1 Zone Layout 1 | . . . . . 1 . . Derelict Proto ID Bank 1 | . . . . 1 . . . Fabricator Hacks . | . . . . . . . . Repair Station Hacks . | . . . . . . . . Recycling Unit Hacks . | . . . . . . . . Scanalyzer . | . . . . . . . . Garrison Access Hacks . | . . . . . . . . Unauthorized Hacks . | . . . . . . . . Terminals . | . . . . . . . . Fabricators . | . . . . . . . . Repair Stations . | . . . . . . . . Recycling Units . | . . . . . . . . Scanalyzers . | . . . . . . . . Garrison Access . | . . . . . . . . Data Cores Recovered . | . . . . . . . . Used . | . . . . . . . . Hacking Detections 3 | . . . . . . . 3 Full Trace Events 1 | . . . . . . . 1 Feedback Events . | . . . . . . . . Feedback Blocked . | . . . . . . . . Robot Schematics Acquired . | . . . . . . . . Robots Built . | . . . . . . . . Authchips . | . . . . . . . . Time . | . . . . . . . . Total Robot Build Rating . | . . . . . . . . Part Schematics Acquired . | . . . . . . . . Parts Built . | . . . . . . . . Authchips . | . . . . . . . . Time . | . . . . . . . . Total Part Build Rating . | . . . . . . . . Parts Repaired . | . . . . . . . . Time . | . . . . . . . . Parts Recycled . | . . . . . . . . Recycled Matter . | . . . . . . . . Retrieved Matter . | . . . . . . . . Retrieved Components . | . . . . . . . . Parts Scanalyzed . | . . . . . . . . Part Schematics Acquired . | . . . . . . . . Parts Damaged . | . . . . . . . . Bothacking | -11 -10 -9 -9 -9 -8 -8 -8 ------------ Run | Yrd Mat Mat Min Exi Min Mat Sto Used RIF Installer . | . . . . . . . . Robots Hacked . | . . . . . . . . Non-combat . | . . . . . . . . Combat . | . . . . . . . . Robot Hacks Applied . | . . . . . . . . Relay Couplers Released . | . . . . . . . . Fabnet Peak Effective % . | . . . . . . . . Robots Rewired . | . . . . . . . . Allies Hacked . | . . . . . . . . Hacks Repelled . | . . . . . . . . Allies | -11 -10 -9 -9 -9 -8 -8 -8 -------- Run | Yrd Mat Mat Min Exi Min Mat Sto Total Allies . | . . . . . . . . Largest Group . | . . . . . . . . Highest-Rated Group . | . . . . . . . . Highest-Rated Ally . | . . . . . . . . Total Orders . | . . . . . . . . Ally Attacks . | . . . . . . . . Total Damage . | . . . . . . . . Kills . | . . . . . . . . Allies Corrupted . | . . . . . . . . Allies Melted . | . . . . . . . . Intel | -11 -10 -9 -9 -9 -8 -8 -8 ------- Run | Yrd Mat Mat Min Exi Min Mat Sto Robot Analysis Total . | . . . . . . . . Derelict Logs Recovered 2 | . . . 2 . . . . Drone Launches . | . . . . . . . . Drone Recoveries . | . . . . . . . . Exploration | -11 -10 -9 -9 -9 -8 -8 -8 ------------- Run | Yrd Mat Mat Min Exi Min Mat Sto Turns Passed 1524 | 78 377 58 298 160 60 24 469 Spaces Moved 1857 | 61 239 87 358 512 182 60 358 Core 33 | 26 . . . . . . 7 Treads 83 | . . . . . . . 83 Legs 334 | 35 239 24 . . . . 36 Wheels 2 | . . . . . . . 2 Hover 16 | . . . . . . . 16 Flight 1389 | . . 63 358 512 182 60 214 Fastest Speed 29 | 50 120 31 31 31 31 31 29 Average Speed 54 | 100 120 55 31 31 31 31 76 Slowest Speed 240 | 200 190 120 31 31 31 31 240 Overloaded Moves . | . . . . . . . . Propulsion Burnouts . | . . . . . . . . Robots Hopped 14 | . . . 13 . 1 . . Cave-ins Triggered . | . . . . . . . . Exploration Rate (%) 40 | 4 43 13 71 89 43 7 52 Regions Visited 7 Branch Regions 4 Pre-discovered Areas 1 | . . . . 1 . . . Known Exits Taken 1 | . . . . . 1 . . Unknown Exits Taken 6 | 1 1 1 1 1 . 1 . Scrap Searched 2 | . . . 1 . 1 . . Spaces Dug 7 | . . . . . . . 7 Terrain Destroyed 7 | . . . . . . . 7 Melee 7 | . . . . . . . 7 Projectile . | . . . . . . . . AOE . | . . . . . . . . Terrain Rammed . | . . . . . . . . Walls Destroyed . | . . . . . . . . Machines Disabled . | . . . . . . . . Actions | -11 -10 -9 -9 -9 -8 -8 -8 --------- Run | Yrd Mat Mat Min Exi Min Mat Sto Total 2203 | 77 299 94 510 513 184 64 462 Wait 158 | . 25 . 131 . . . 2 Move 1828 | 60 238 86 337 511 179 59 358 Hop 8 | . . . 7 . 1 . . Pick Up 43 | 11 10 2 10 1 1 2 6 Fast Attach 13 | 1 . . 1 . . . 11 Attach 24 | 5 3 2 5 . . 1 8 Detach . | . . . . . . . . Swap 13 | . 3 3 1 . 1 1 4 Drop 19 | . 5 1 5 1 2 1 4 Fire 65 | . 15 . 13 . . . 37 Melee 27 | . . . . . . . 27 Ram . | . . . . . . . . Kick . | . . . . . . . . Crush . | . . . . . . . . Escape Stasis 5 | . . . . . . . 5 Rewire . | . . . . . . . . Trap . | . . . . . . . . Miscellaneous . | . . . . . . . . Route ------- -11/Scrapyard -10/Materials -9/Materials -9/Mines (discovered 2 exits: *Mat / *Exi) -9/Exiles -8/Mines -8/Materials -8/Storage (discovered 1 exit: Fac) History --------- Turn | Location | Event 9 | -11/Scrapyard | Discovered new exit (range 16) 79 | -11/Scrapyard | Entered Materials 308 | -10/Materials | Build established: Mutant 431 | -10/Materials | Discovered new exit (range 13) 456 | -10/Materials | Entered another Materials area 456 | -9/Materials | Evolved 2 slots: Propulsion x2 497 | -9/Materials | Discovered new exit (range 4) 514 | -9/Materials | Entered Mines 559 | -9/Mines | Met a Derelict bent on vengeance 572 | -9/Mines | Assembled infested the area 597 | -9/Mines | Met 8R-AWN 679 | -9/Mines | Lost 3 parts (3n) 684 | -9/Mines | Found a damaged Exp. Sensor Array with a note attached 684 | -9/Mines | Found Prototype Device 713 | -9/Mines | Learned Materials stockpile data 755 | -9/Mines | Met a Derelict who couldn't figure out how to use a Trap Extractor 756 | -9/Mines | Identified exit to Materials 782 | -9/Mines | Build established: Sprinter 807 | -9/Mines | Discovered new exit (range 5) 812 | -9/Mines | Entered Exiles 820 | -9/Exiles | Welcomed by 8R-AWN 825 | -9/Exiles | Met EX-HEX 836 | -9/Exiles | Met EX-BIN 840 | -9/Exiles | Aligned with FarCom system 841 | -9/Exiles | Given EX-Vault access code 848 | -9/Exiles | Opened EX-Vault 864 | -9/Exiles | Warned to stay clear of 0b10 Research branches 876 | -9/Exiles | Found Superbattery 893 | -9/Exiles | Met EX-DEC 895 | -9/Exiles | Learned location of Zion (-6) 914 | -9/Exiles | Visited The Gauntlet 967 | -9/Exiles | Discovered new exit (range 10) 972 | -9/Exiles | Left Exiles lab with Superbattery 972 | -9/Exiles | Entered Mines 1029 | -8/Mines | Discovered exit to Materials (range 11) 1032 | -8/Mines | Entered Materials 1032 | -8/Materials | Evolved 2 slots: Power x1, Utility x1 1032 | -8/Materials | Identified Exp. Sensor Array 1047 | -8/Materials | Discovered new exit (range 9) 1056 | -8/Materials | Entered Storage 1141 | -8/Storage | Identified exit to Factory 1215 | -8/Storage | Lost 5 parts (4n1u) 1234 | -8/Storage | Destroyed 7 combat bots 1433 | -8/Storage | Lost 7 parts (1p4n1u1w) 1460 | -8/Storage | Core integrity fell below 50% 1497 | -8/Storage | Core integrity fell below 20% 1525 | -8/Storage | Destroyed by G-47 Trooper with Particle Gun Last Messages --------------- 01459_ Lgt. Angular Momentum Engine destroyed. 01462_ Carbon-fiber Leg destroyed. 01466_ Aluminum Leg destroyed. 01468_ Critical hit (Burn: +37). 01470_ Beam Rifle destroyed. 01474_ K-01 Serf cleans the Repair Station. 01478_ Acquired Arm. Wheel. 01478_ K-01 Serf cleans the Repair Station. 01481_ G-47 Trooper destroyed. 01483_ W-25 Informer sends out distress signal. 01484_ K-01 Serf collects debris. 01486_ G-47 Trooper knocked back. 01494_ Y-45 Defender suffers critical hit (Smash). 01494_ Lgt. Deuterium Engine destroyed. 01494_ Critical hit (Burn: +37). 01513_ Sneak attack on A-02 Transporter. 01516_ Arm. Wheel destroyed. 01519_ G-47 Trooper destroyed. 01522_ Acquired 20 matter. 01523_ Critical hit (Burn: +37). Map ----- +----------------------------------------------------+ | # #?????+??????????#"" """#?#""" | | # #????????????????### """#?#""" | | ####### #??????????????????# #?# | | #?##### #??????????????????###"Y"####?###"Y"## | | #####"T"# #????????????????????#"""#??????#"""## | | #????????????????????#####??????###### | | #### #????????????????????????????????????? | | ??## #?????#+##???????????????????????????? | | ??# """ #????? #???????????????????????????? | | ??#T """ #????? ??????g?????????????????????? | | ??#" """ #????? ????????????????????????????? | | ??## #?????# #????????????????????????????? | | ???# #?????# #????????????????????????????? | | ???# ####### #????????????????????????????? | | ???+ #????????????????????????????? | | ???# #####/## #??????#####+#???????????????? | | #### # # ####### ??????????????? | | + """" # ^^ ??????????????? | | ###### """" ####### k ??????????????? | | ####?#["""" #??# !/ #####??????????????????? | | #?# ["" #??# !/ #??????????????????????? | | "" #?#% #??# #??????????????????????? | | "" #?###### #??#### g #??????????????????????? | | "" #??????###?????# Y #??????????????????????? | | #?????????????##+##/##g#??????????????????????? | | #?????????????# #@#??????????????????????? | | ####?????????????# """ /g#??????????????????????? | | ????????????????## "R" # #??????????????????????? | | ????????????????# " " #g#########??????????????? | | ????????????????## [+%+ #?????????????? | | ?????????????????# =# # #?????????????? | | ?????????????????######## # """" #?????????????? | | ???????????????????????? #? ""??????????????????? | | ??????????????????????? +?""???????????????????? | | ?????????????????????? ^ #??????????????????????? | | ??????????????????????#####??????????????????????? | | ?????????????????????????????????????????????????? | | ?????????????????????????????????????????????????? | | ?????????????????????????????????????????????????? | | ?????????????????????????????????????????????????? | | ?????????????????????????????????????????????????? | | ?????????????????????????????????????????????????? | | ?????????????????????????????????????????????????? | | ?????????????????????????????????????????????????? | | ?????????????????????????????????????????????????? | | ?????????????????????????????????????????????????? | | ?????????????????????????????????????????????????? | | ?????????????????????????????????????????????????? | | ?????????????????????????????????????????????????? | | ?????????????????????????????????????????????????? | +----------------------------------------------------+ Best States ------------- Heat Dissipation 31 Energy Generation 27 Energy Capacity 315 Matter Stores 300 Matter Capacity 300 Sight Range 16 Robot Scan Range 20 Terrain Scan Density 10 ECM Strength 1 Jamming Range 12 Evasion (%) 63 Targeting Accuracy 8 Recoil Reduction 4 Item Schematics ----------------- None Robot Schematics ------------------ None Fabricated ------------ Nothing Alien Tech Used ----------------- None Achievements -------------- None Challenges ------------ None Game ------ Seed AerolevTransdimensionalSuit Manual? 0 Play Time 00:32:53 Cumulative 125.4 hours Start 2024.08.15 @ 17:33:46 End 2024.08.15 @ 18:19:59 Sessions 1 Manual Loads 0 Difficulty Rogue Special Mode None Game No. 174 Rogue 174 Adventurer 0 Explorer 0 Win Type - Total 0 Types 0/0/0/0/0/0/0/0/0 Lore% 31 Gallery% 57 Achievement% 38 Wizard Run 0 Options --------- Layout 0 ASCII 0 Keyboard 0 Movement Mouse Keybinds 0 Fullscreen 1 Font 24/Smallcaps Map View 76x50 Zoom Use 0% Tactical HUD 1 Map Filters NONE Filters NONE Steam 1 RUN: 23c327bb-d4b2-4b20-8a3b-3b0992ed2a8d